Cogmind - Beta 16.1 @@@ ROGUE MODE // 2026.03.24 @ 19:55:36 Player: star Result: Destroyed by G-47 Trooper with Particle Gun Performance ------------- Evolutions (3) 1500 Regions Visited (5) 1000 Robots Destroyed (73) 365 Value Destroyed (2139) 2139 Prototype IDs (3) 60 Alien Tech Used (0) 0 Bonus (0) 0 TOTAL SCORE: 5064 Bonus ------- None Cogmind --------- Core Integrity 0/700 Matter 146/300 Energy 100/100 System Corruption 10% Temperature Cool (9) Movement Treading (160) Location -7/Factory Parts ------- > --- POWER (1) -------- (None) > --- PROPULSION (3) --- Light Treads Improved Treads Improved Treads > --- UTILITY (5) ------ Medium Storage Unit Improved Signal Interpreter Target Analyzer > --- WEAPON (4) ------- Mini Assault Cannon Mini Assault Cannon Mini Assault Cannon Chainsword > --- INVENTORY (10) --- Improved Treads High-capacity Battery (250) Large Matter Pod (0) Core Analyzer Matter Filter Weapon Cycler Mini Assault Cannon Mini Assault Cannon Mini Grenade Launcher Peak State ------------ > --- POWER ------------ Light Nuclear Core > --- PROPULSION ------- Improved Treads Armored Treads Armored Treads > --- UTILITY ---------- Improved Heat Sink Medium Storage Unit Improved Signal Interpreter Bomb Drone Bay > --- WEAPON ----------- Mini Assault Cannon Mini Assault Cannon Mini Assault Cannon Chainsword > --- INVENTORY -------- Improved Treads Improved Treads Improved Treads High-capacity Battery Large Matter Pod Hacking Suite Mini Assault Cannon Mini Grenade Launcher [Rating: 52] Favorites ----------- Power Light Nuclear Core Engine Ion Engine Power Core Light Nuclear Core Propulsion Armored Treads Treads Armored Treads Wheel Wheel Utility Medium Storage Unit Device Weapon Cycler Storage Medium Storage Unit Processor Improved Signal Interpreter Protection Improved Utility Shielding Weapon Shotgun Energy Gun Field Laser Energy Cannon Particle Cannon Ballistic Gun Shotgun Ballistic Cannon Mini Assault Cannon Launcher Mini Grenade Launcher Slashing Weapon Chainsword Build | -11 -10 -10 -9 -8 -7 ------- Run | Yrd Mat Min Mat Mat Fac Slots Evolved 6 | . . . 2 2 2 Power . | . . . . . . Propulsion 1 | . . . . . 1 Utility 3 | . . . . 2 1 Weapon 2 | . . . 2 . . Parts Attached 58 | 7 5 . 9 12 25 Power 8 | 1 . . 2 2 3 Engine 5 | 1 . . 2 1 1 Core 3 | . . . . 1 2 Reactor . | . . . . . . Propulsion 13 | 2 . . 3 3 5 Treads 9 | . . . 1 3 5 Leg . | . . . . . . Wheel 4 | 2 . . 2 . . Hover . | . . . . . . Flight . | . . . . . . Utility 18 | 1 2 . 2 5 8 Device 6 | . . . . 2 4 Storage 3 | 1 . . 1 . 1 Processor 2 | . . . . . 2 Hackware . | . . . . . . Protection 7 | . 2 . 1 3 1 Artifact . | . . . . . . Weapon 19 | 3 3 . 2 2 9 Energy Gun 3 | . . . . 1 2 Energy Cannon 1 | . . . . 1 . Ballistic Gun 8 | 3 2 . 2 . 1 Ballistic Cannon 5 | . . . . . 5 Launcher 1 | . 1 . . . . Special Weapon . | . . . . . . Impact Weapon . | . . . . . . Slashing Weapon 1 | . . . . . 1 Piercing Weapon . | . . . . . . Special Melee Weapon . | . . . . . . Unidentified Prototypes 3 | . . . . . 3 Parts Lost 23 | . 1 . 3 7 12 Power 4 | . . . 1 . 3 Propulsion 5 | . . . 1 1 3 Utility 10 | . 1 . 1 3 5 Weapon 4 | . . . . 3 1 Highest Loss Streak 6 | . 1 . 1 6 3 To Critical Strikes . | . . . . . . Average Backups 8 | 1 6 7 5 8 8 Power . | . 1 1 . 1 . Propulsion 1 | . 2 1 . . 1 Utility 4 | . . 2 3 5 4 Weapon 1 | . 1 3 1 1 2 Tool/Special . | . . . . . . Unused Backups 14 | . 3 2 . . 9 Power . | . . . . . . Propulsion 7 | . 2 2 . . 3 Utility 5 | . . . . . 5 Weapon 1 | . . . . . 1 Tool/Special 1 | . 1 . . . . Average Slot Usage (%) 92 | . 93 100 90 82 94 Engine 5 | . 14 14 10 8 . Core 3 | . . . . . 6 Treads 13 | . . . 1 15 19 Wheel 6 | . 28 28 14 2 . Device 9 | . . . . 7 14 Storage 9 | . 14 14 11 9 7 Processor 3 | . . . . . 7 Protection 8 | . 8 14 8 12 6 Energy Gun 3 | . . . . 3 6 Ballistic Gun 15 | . 27 28 43 21 2 Ballistic Cannon 9 | . . . . . 17 Slashing Weapon 1 | . . . . . 2 Peak Build Rating 52 | 6 10 11 15 29 52 Average Rating 28 | 4 7 10 13 21 41 On Entrance 11 | . 6 10 11 15 29 Avg Prop Armor Cover (%) 8 | . . . 8 8 . Naked Turns . | . . . . . . Heaviest Build 42 | 11 15 15 28 39 42 Greatest Support 66 | 20 20 20 20 40 66 Greatest Overweight (x) 3 | 1 . . 2 3 1 Average Overweight (x) . | . . . 1 . . Largest Inventory Capacity 10 | 8 8 8 10 10 10 Average Capacity 9 | 7 8 8 8 10 10 Most Carried 10 | 4 8 8 9 10 10 Average Carried 8 | 1 6 7 6 9 9 Final Capacity 10 | 8 8 8 10 10 10 Final Carried 10 | 4 8 8 9 10 9 Class Distribution -------------------- 37% | Scavenger-Gunner 22% | Scavenger-Tank 19% | Mutant 13% | Tank 5% | Gunner Dominant Class ---------------- Mutant | -10/Materials Mutant | -10/Mines Tank | -9/Materials Scavenger-Tank | -8/Materials Scavenger-Gunner | -7/Factory Resources | -11 -10 -10 -9 -8 -7 ----------- Run | Yrd Mat Min Mat Mat Fac Matter Collected 2413 | 238 151 . 516 475 1033 Remotely 312 | . . . . . 312 Salvage Created 2344 | . 372 . 516 455 1001 Parts 121 | . 25 . 32 13 51 Haulers Intercepted 6 | . 2 . 3 . 1 Recyclers Shooed 3 | . 1 . . . 2 Parts Field Recycled . | . . . . . . Retrieved Matter . | . . . . . . Parts Self-Destructed . | . . . . . . Prevented . | . . . . . . Parts Restored . | . . . . . . Kills | -11 -10 -10 -9 -8 -7 ------- Run | Yrd Mat Min Mat Mat Fac Combat Hostiles Destroyed 52 | . 10 . 10 8 24 Melee 2 | . . . . . 2 Guns 31 | . 9 . 10 7 5 Cannons 9 | . . . . 1 8 AOE 10 | . 1 . . . 9 Classes Destroyed 12 | . 4 . 4 1 3 Worker 7 | . . . 1 1 5 Builder 3 | . . . . . 3 Hauler 6 | . 2 . 3 . 1 Recycler 3 | . 1 . . 1 1 Operator 2 | . . . 1 . 1 Swarmer 15 | . 9 . . . 6 Grunt 24 | . 1 . 7 6 10 Duelist 1 | . . . 1 . . Sentry 6 | . . . 2 1 3 Hunter 2 | . . . . . 2 Programmer 3 | . . . . . 3 Heavy 1 | . . . . 1 . Best Kill Streak 7 | . 7 . 4 2 6 Combat Bots Only 7 | . 7 . 4 2 4 Max Kills in Single Turn 2 | . 1 . 1 1 2 Gunslinging . | . . . . . . Exploded 2 | . 1 . . . 2 Melee 1 | . . . . . 1 Uniques/NPCs Destroyed . | . . . . . . Combat | -11 -10 -10 -9 -8 -7 -------- Run | Yrd Mat Min Mat Mat Fac Hostile Shots Fired 387 | . 50 . 34 48 255 Missed 103 | . 7 . 6 15 75 Hits 284 | . 43 . 28 33 180 Melee 5 | . . . 5 . . Projectile 279 | . 43 . 23 33 180 Critical Strikes 7 | . . . 2 . 5 Actively Blocked 1 | . . . 1 . . Part Disruptions 1 | . . . . . 1 Damage Taken 4471 | . 351 . 455 865 2800 Core 1023 | . 82 . 125 116 700 Absorbed by Shields 76 | . . . . . 76 Redirected to Shielding 313 | . . . 55 110 148 Core Remaining (%) 78 | 100 . 67 68 78 . Volleys Fired 158 | . 39 . 27 28 64 Largest 4 | . 2 . 4 4 4 Hottest 219 | . 50 . 92 154 219 Shots Fired 454 | . 75 . 108 69 202 Gun 337 | . 74 . 108 65 90 Cannon 105 | . . . . 4 101 Launcher 12 | . 1 . . . 11 Special . | . . . . . . Kinetic 362 | . 74 . 108 61 119 Thermal 65 | . . . . 8 57 Explosive 12 | . 1 . . . 11 Electromagnetic 15 | . . . . . 15 Robot Hit Streak 22 | . 10 . 10 22 15 Robot Miss Streak 7 | . 6 . 7 5 5 Penetration Max . | . . . . . . Secondary Targets 3 | . 2 . . . 1 Max Gunslinging Chain 1 | . 1 . . . 1 Shots Hit Robots 297 | . 44 . 72 53 128 Core Hits 139 | . 19 . 32 29 59 Critical Kills 1 | . 1 . . . . Critical Parts Destroyed 2 | . . . 1 1 . Critical Strikes 11 | . 1 . 1 1 8 Burn 2 | . . . . . 2 Destroy 3 | . 1 . 1 1 . Blast 2 | . . . . . 2 Sever 4 | . . . . . 4 Melee Attacks 17 | . . . . . 17 Impact . | . . . . . . Slashing 17 | . . . . . 17 Piercing . | . . . . . . Sneak Attacks 3 | . . . . . 3 Combat Hostiles . | . . . . . . Follow-up Attacks . | . . . . . . Damage Inflicted 6460 | . 476 . 1038 867 4079 Guns 3257 | . 415 . 1038 805 999 Cannons 1403 | . . . . 62 1341 Explosions 1172 | . 61 . . . 1111 Melee 626 | . . . . . 626 Ramming 2 | . . . . . 2 Kinetic 3851 | . 415 . 1038 787 1611 Thermal 888 | . . . . 80 808 Explosive 955 | . 61 . . . 894 Electromagnetic 138 | . . . . . 138 Impact . | . . . . . . Slashing 626 | . . . . . 626 Piercing . | . . . . . . Highest Corruption 10 | . . . . . 10 Average Corruption 4 | . . . . . 4 Corruption Purged . | . . . . . . Corruption Blocked . | . . . . . . Effects 22 | . . . . . 22 Message Errors 6 | . . . . . 6 Matter Fused 4 | . . . . . 4 Heat Flow Errors 3 | . . . . . 3 Energy Discharges 3 | . . . . . 3 Data Loss (minor) 3 | . . . . . 3 Weapon Failures 3 | . . . . . 3 Overload Shots . | . . . . . . Overflow Damage 236 | . 21 . . . 215 Projectiles 14 | . . . . . 14 Explosions 101 | . 21 . . . 80 Melee 121 | . . . . . 121 Knockbacks 12 | . . . . . 12 Impact . | . . . . . . Kinetic 11 | . . . . . 11 Secondary 1 | . . . . . 1 Self-Inflicted Damage 335 | . . . . . 335 Shots 5 | . . . . . 5 Rammed 1 | . . . . . 1 Targets Rammed 1 | . . . . . 1 Kicked . | . . . . . . Crushed . | . . . . . . Highest Temperature 598 | . 12 . 123 345 598 Average Temperature 109 | . 6 . 44 84 152 Received Heat Transfer 980 | . 12 . 150 198 620 Effects 9 | . . . . . 9 Shutdowns 2 | . . . . . 2 Interference 5 | . . . . . 5 Short Circuit 1 | . . . . . 1 Damage (core) 1 | . . . . . 1 Siege Activations . | . . . . . . Martial Activations . | . . . . . . Shielding Activations . | . . . . . . Robots Disrupted . | . . . . . . Combat Hostiles . | . . . . . . Robots Corrupted . | . . . . . . Combat Hostiles . | . . . . . . Parts Fried . | . . . . . . Impact Corruptions . | . . . . . . Robots Melted . | . . . . . . Combat Hostiles . | . . . . . . Parts Melted 12 | . . . . . 12 Heat Transferred 1741 | . . . . 148 1593 Parts Sabotaged . | . . . . . . Parts Stolen . | . . . . . . Parts Stripped . | . . . . . . Power Chain Reactions . | . . . . . . Alert | -11 -10 -10 -9 -8 -7 ------- Run | Yrd Mat Min Mat Mat Fac Maximum Alert Level 1 | . 1 . . . 1 Low Security (%) 93 | 100 89 100 100 100 89 Level 1 6 | . 10 . . . 10 Level 2 . | . . . . . . Level 3 . | . . . . . . Level 4 . | . . . . . . Level 5 . | . . . . . . High Security . | . . . . . . Max Security . | . . . . . . Peak Influence 299 | . 211 73 90 75 299 Initial 73 | . . 73 . 24 18 Average 63 | . 71 35 48 22 84 Influence Increases 1719 | . 321 . 291 240 867 Destroy 0b10 Robot/C 1040 | . 200 . 200 160 480 Destroy 0b10 Robot/NC 105 | . 15 . 25 10 55 Destroy Leader 272 | . 34 . 66 40 132 Successful Hack 6 | . 6 . . . . Disable Machine 75 | . 15 . . . 60 Destroy Structure 101 | . 6 . . . 95 Lose Combat Pursuer 120 | . 45 . . 30 45 Influence Decreases 1420 | . 133 188 234 256 609 Entered New Map 171 | . . 115 . 33 23 Time Decay 1059 | . 123 73 214 183 466 Lost Part 190 | . 10 . 20 40 120 Squads Dispatched 15 | . . . 2 2 11 Investigation 1 | . . . . 1 . Extermination 3 | . . . . . 3 Reinforcement 8 | . . . 2 1 5 Assault . | . . . . . . Garrison 3 | . . . . . 3 Intercept . | . . . . . . Searches Triggered . | . . . . . . Construction Impeded 2 | . . . . . 2 Haulers Reinforced 1 | . . . . . 1 Active Scanning Responses . | . . . . . . Cargo Convoy Interrupts 1 | . . . . . 1 Stealth | -11 -10 -10 -9 -8 -7 --------- Run | Yrd Mat Min Mat Mat Fac Distress Signals 4 | . 1 . 1 2 . Communications Jammed . | . . . . . . Distress Signals . | . . . . . . Times Spotted 92 | . 18 . 20 18 36 Peak Tracking Total 7 | . 4 . 7 5 7 Tactical Retreats 6 | . 2 . . 2 2 Traps | -11 -10 -10 -9 -8 -7 ------- Run | Yrd Mat Min Mat Mat Fac Traps Triggered 4 | . . . . 2 2 Indirectly . | . . . . . . Trap Hack Attempts . | . . . . . . Triggered . | . . . . . . Disarmed . | . . . . . . Reprogrammed . | . . . . . . Reused . | . . . . . . Traps Extracted . | . . . . . . Installed . | . . . . . . Triggered . | . . . . . . Machines | -11 -10 -10 -9 -8 -7 ---------- Run | Yrd Mat Min Mat Mat Fac Machines Disabled 5 | . 1 . . . 4 Max in Single Turn 3 | . 1 . . . 3 Machines Repaired . | . . . . . . Machines Dismantled . | . . . . . . Machines Sabotaged . | . . . . . . Overloaded Fab Kills . | . . . . . . Hacking | -11 -10 -10 -9 -8 -7 --------- Run | Yrd Mat Min Mat Mat Fac Machines Accessed 3 | . 1 1 . . 1 Terminals 1 | . 1 . . . . Fabricators . | . . . . . . Repair Stations . | . . . . . . Recycling Units . | . . . . . . Scanalyzers . | . . . . . . Garrison Access 1 | . . . . . 1 Total Hacks 3 | . 1 1 . . 1 Successful 2 | . 1 1 . . . Failed 1 | . . . . . 1 Catastrophic 1 | . . . . . 1 Database Lockouts . | . . . . . . Manual 1 | . 1 . . . . Terminals 1 | . 1 . . . . Fabricators . | . . . . . . Repair Stations . | . . . . . . Recycling Units . | . . . . . . Scanalyzers . | . . . . . . Garrison Access 1 | . . . . . 1 Terminal Hacks 1 | . . 1 . . . Open Door 1 | . . 1 . . . Fabricator Hacks . | . . . . . . Repair Station Hacks . | . . . . . . Recycling Unit Hacks . | . . . . . . Scanalyzer . | . . . . . . Garrison Access Hacks . | . . . . . . Unauthorized Hacks 1 | . 1 . . . . Terminals 1 | . 1 . . . . Assimilate 1 | . 1 . . . . Fabricators . | . . . . . . Repair Stations . | . . . . . . Recycling Units . | . . . . . . Scanalyzers . | . . . . . . Garrison Access . | . . . . . . Data Cores Recovered 1 | . . . 1 . . Used . | . . . . . . Hacking Detections 1 | . . . . . 1 Full Trace Events . | . . . . . . Feedback Events . | . . . . . . Feedback Blocked . | . . . . . . Robot Schematics Acquired . | . . . . . . Robots Built . | . . . . . . Authchips . | . . . . . . Time . | . . . . . . Total Robot Build Rating . | . . . . . . Part Schematics Acquired . | . . . . . . Parts Built . | . . . . . . Authchips . | . . . . . . Time . | . . . . . . Total Part Build Rating . | . . . . . . Part Studies Acquired . | . . . . . . Parts Repaired . | . . . . . . Time . | . . . . . . Parts Recycled . | . . . . . . Recycled Matter . | . . . . . . Retrieved Matter . | . . . . . . Retrieved Components . | . . . . . . Parts Scanalyzed . | . . . . . . Part Schematics Acquired . | . . . . . . Parts Damaged . | . . . . . . Bothacking | -11 -10 -10 -9 -8 -7 ------------ Run | Yrd Mat Min Mat Mat Fac Used RIF Installer . | . . . . . . Robots Hacked . | . . . . . . Non-combat . | . . . . . . Combat . | . . . . . . Robot Hacks Applied . | . . . . . . Relay Couplers Released . | . . . . . . Fabnet Peak Effective % . | . . . . . . Robots Rewired . | . . . . . . Allies Hacked . | . . . . . . Hacks Repelled . | . . . . . . Allies | -11 -10 -10 -9 -8 -7 -------- Run | Yrd Mat Min Mat Mat Fac Total Allies 1 | . 1 . . . . Largest Group 1 | . 1 . . . . Highest-Rated Group 10 | . 10 . . . . Highest-Rated Ally 10 | . 10 . . . . Total Orders . | . . . . . . Ally Attacks . | . . . . . . Total Damage . | . . . . . . Kills . | . . . . . . Allies Corrupted . | . . . . . . Allies Melted . | . . . . . . Intel | -11 -10 -10 -9 -8 -7 ------- Run | Yrd Mat Min Mat Mat Fac Active Infowar (turns) . | . . . . . . Robot Analysis Total . | . . . . . . Derelict Logs Recovered 1 | . . 1 . . . Drone Launches . | . . . . . . Drone Recoveries . | . . . . . . Exploration | -11 -10 -10 -9 -8 -7 ------------- Run | Yrd Mat Min Mat Mat Fac Turns Passed 3420 | 54 307 169 455 609 1826 Spaces Moved 1934 | 51 217 207 314 288 857 Core 6 | 6 . . . . . Treads 1062 | . . . . 205 857 Legs . | . . . . . . Wheels 866 | 45 217 207 314 83 . Hover . | . . . . . . Flight . | . . . . . . Fastest Speed 50 | 50 80 80 80 110 160 Average Speed 134 | 77 80 80 103 153 169 Slowest Speed 250 | 95 80 80 110 240 250 Overloaded Moves . | . . . . . . Propulsion Burnouts . | . . . . . . Robots Hopped . | . . . . . . Potential Cave-ins . | . . . . . . Cave-ins Triggered 1 | . . . . . 1 Exploration Rate (%) 31 | 3 41 60 29 33 24 Regions Visited 5 Branch Regions 1 Pre-discovered Areas . | . . . . . . Known Exits Taken 1 | . . 1 . . . Unknown Exits Taken 4 | 1 1 . 1 1 . Scrap Searched . | . . . . . . Spaces Dug . | . . . . . . Terrain Destroyed 119 | . 5 . . . 114 Melee . | . . . . . . Projectile 20 | . . . . . 20 AOE 99 | . 5 . . . 94 Terrain Rammed . | . . . . . . Walls Destroyed . | . . . . . . Machines Disabled . | . . . . . . Actions | -11 -10 -10 -9 -8 -7 --------- Run | Yrd Mat Min Mat Mat Fac Total 2419 | 62 289 211 373 405 1079 Wait 172 | . 15 2 22 64 69 Move 1929 | 50 216 206 313 287 857 Hop . | . . . . . . Pick Up 36 | 5 8 1 2 3 17 Fast Attach 26 | 5 3 . 1 9 8 Attach 14 | 1 . . 4 1 8 Detach 1 | . . . . . 1 Swap 36 | 1 2 . 4 7 22 Drop 29 | . 6 2 . 6 15 Fire 158 | . 39 . 27 28 64 Melee 17 | . . . . . 17 Ram . | . . . . . . Kick . | . . . . . . Crush 1 | . . . . . 1 Escape Stasis . | . . . . . . Rewire . | . . . . . . Trap . | . . . . . . Miscellaneous . | . . . . . . Route ------- -11/Scrapyard -10/Materials (discovered 2 exits: *Mat / *Min) -10/Mines (discovered 2 exits: *Mat x2) -9/Materials -8/Materials -7/Factory (discovered 2 exits: *Fac x2) History --------- Turn | Location | Event 20 | -11/Scrapyard | Discovered new exit (range 16) 55 | -11/Scrapyard | Entered Materials 222 | -10/Materials | Discovered new exit (range 14) 323 | -10/Materials | Destroyed 7 combat bots 330 | -10/Materials | Discovered new exit (range 13) 333 | -10/Materials | Build established: Mutant 362 | -10/Materials | Entered Mines 369 | -10/Mines | Identified exit to Materials 374 | -10/Mines | Discovered exit to Materials (range 3) 486 | -10/Mines | Found the Drone Emporium 493 | -10/Mines | Found Prototype Device 531 | -10/Mines | Entered Materials 531 | -9/Materials | Evolved 2 slots: Weapon x2 823 | -9/Materials | Build established: Tank 982 | -9/Materials | Discovered new exit (range 3) 986 | -9/Materials | Entered another Materials area 986 | -8/Materials | Evolved 2 slots: Utility x2 1253 | -8/Materials | Discovered new exit (range 4) 1311 | -8/Materials | Lost 6 parts (1n2u3w) 1595 | -8/Materials | Entered Factory 1595 | -7/Factory | Evolved 2 slots: Propulsion x1, Utility x1 1909 | -7/Factory | Build established: Scavenger-Tank 2277 | -7/Factory | Lost 3 parts (1p2u) 2438 | -7/Factory | Identified Bomb Drone Bay 2510 | -7/Factory | Discovered new exit (range 16) 2560 | -7/Factory | Build established: Scavenger-Gunner 2562 | -7/Factory | Identified exit to Factory 2738 | -7/Factory | Core integrity fell below 50% 2739 | -7/Factory | Garrison activated, responded to threat 3162 | -7/Factory | Discovered exit to Factory (range 3) 3242 | -7/Factory | Crushed by falling debris 3242 | -7/Factory | Core integrity fell below 20% 3242 | -7/Factory | System corruption reached 10% 3397 | -7/Factory | Cargo convoy interrupted 3421 | -7/Factory | Destroyed by G-47 Trooper with Particle Gun Last Messages --------------- 03387_ Acquired Lgt. Treads. 03388_ K-01 Serf cleans the Fusion Modulator. 03393_ System corrupted: Matter fused (-5). 03393_ Tractor Beam destroyed. 03393_ G-47 Trooper Imp. Heat Sink severed. 03396_ G-47 Trooper destroyed. 03397_ ALERT: Cargo convoy interrupted, initiating access lockdown. 03397_ K-01 Serf collects debris. 03402_ Acquired 57 matter. 03405_ K-01 Serf collects debris. 03406_ Y-54 Guardian Flak Gun severed. 03408_ Y-54 Guardian destroyed. 03409_ Acquired 73 matter. 03409_ K-01 Serf collects debris. 03417_ System corrupted: Heat flow error (+110). 03419_ Sneak attack on K-01 Serf. 03419_ Destroyed Wheel. 03419_ K-01 Serf destroyed. 03419_ K-01 Serf cleans the Fusion Modulator. Map ----- +----------------------------------------------------+ | ???????????????????????????# """ """ ]# # | | ???????????????????????????? """ """ #/ # | | ???????????????????????????? """ """ # # ### | | ???????????????????????????? # # #?? | | ???????????????????????????# " "" ###### #?? | | ???????????????????????????# "R"" #????# #?? | | ???????????????????????????# """" #????# #?? | | ??????????????????????????????# #+## ###### ### | | ???????????????????############ [ | | ??????????????????? # # ########## | | ??????????????????? # * # ##????????? | | ??????????????????? + =#########???? | | ??????????????????? !! [ # ? | | ??????????????????? !] ?# # | | ????????????????????? ???# # """""""""? | | ??????????????############?????# # ????? | | ??????????????? #??????# # """"""???? | | ?????????????? #??????# # ????? | | ????????????? #??????# + """""????? | | ???????????? """ """ #??????# # ???????? | | ???????????# """ """ #??????# # ""???????? | | ???????????# """ """ ######## #? ???????? | | ???????????# # #? "????????? | | ???????????# """ """ # #? ????????? | | ???????????# """ """ [#[* #?#?????????? | | ???????????# """ """ [!/@* #???????????? | | ???????????# k r =#% u #???????????? | | ???????????# g # ####+###???????????? | | ???????????###/########## #??????????????????? | | ??????????????????????? #??????????????????? | | ?????????????????????? #??????????????????? | | ????????????????????? #??????????????????? | | ???????????????????? #??????????????????? | | ???????????????????? % #??????????????????? | | ???????????????????? ###+####??????????????????? | | ????????????????????? ?# ???????????????????????? | | ????????????????????? ?# ???????????????????????? | | ???????????????????? ??# ???????????????????????? | | ???????????????????? ??? ???????????????????????? | | ??????????????????? ??? ???????????????????????? | | ??????????????????? ????????????????????????????? | | ?????????????????????????????????????????????????? | | ?????????????????????????????????????????????????? | | ?????????????????????????????????????????????????? | | ?????????????????????????????????????????????????? | | ?????????????????????????????????????????????????? | | ?????????????????????????????????????????????????? | | ?????????????????????????????????????????????????? | | ?????????????????????????????????????????????????? | | ?????????????????????????????????????????????????? | +----------------------------------------------------+ Best States ------------- Heat Dissipation 48 Energy Generation 14 Energy Capacity 500 Matter Stores 300 Matter Capacity 300 Sight Range 16 Terrain Scan Density 10 Armor Coverage 300 Utility Shielding 66 Weapon Shielding 33 Weapon Cycling 15 Evasion (%) 44 Target Analysis 5 Recoil Reduction 6 Item Schematics ----------------- None Robot Schematics ------------------ None Fabricated ------------ Nothing Repaired ---------- Nothing Studied --------- None Alien Tech Used ----------------- None Achievements -------------- None Challenges ------------ None Game ------ Seed FocalHelicalSpoofer Manual? 0 Play Time 00:27:23 Cumulative 179.4 hours Start 2026.03.22 @ 17:42:47 End 2026.03.24 @ 19:55:36 Sessions 3 Manual Loads 0 Difficulty Rogue Special Mode None Game No. 303 Rogue 303 Adventurer 0 Explorer 0 Win Type - Total 1 Types 1/0/0/0/0/0/0/0/0/0 Lore% 56 Gallery% 57 Achievement% 40 Wizard Run 0 Options --------- Layout 1 ASCII 0 Keyboard 1 Movement Numpad Keybinds 0 Fullscreen 2 Font 24/Smallcaps Map View 50x35 Zoom Use 0% Tactical HUD 1 Map Filters NONE Filters NONE Steam 1 RUN: 98687499-dc65-44eb-908d-707c724ecf4d